[Event "*** SCC Grand Prix: Titled Tuesday Blitz"]
[Site "Chess.com"]
[Date "2020.06.09"]
[Round "4"]
[White "LimeInTheCoconut"]
[Black "Pintacara"]
[Result "0-1"]
[WhiteElo "2456"]
[BlackElo "2335"]
[TimeControl "180+1"]
[EndTime "9:40:08 PDT"]
[Termination "Pintacara won on time"]

1. c4 {[%clk 0:03:00.9]} 1... e5 {[%clk 0:02:57.3]} 2. Nc3 {[%clk 0:02:59.3]}
2... Nc6 {[%clk 0:02:57.5]} 3. Nf3 {[%clk 0:02:59.5]} 3... g6 {[%clk 0:02:57.6]}
4. d4 {[%clk 0:02:58.5]} 4... exd4 {[%clk 0:02:56.9]} 5. Nxd4 {[%clk 0:02:59.1]}
5... Bg7 {[%clk 0:02:57.2]} 6. Nxc6 {[%clk 0:02:41.3]} 6... bxc6 {[%clk
0:02:58.1]} 7. Qd2 {[%clk 0:02:33.8]} 7... Nf6 {[%clk 0:02:52.2]} 8. e3 {[%clk
0:02:29]} 8... O-O {[%clk 0:02:52.5]} 9. Be2 {[%clk 0:02:28.8]} 9... d5 {[%clk
0:02:52]} 10. O-O {[%clk 0:02:25]} 10... Be6 {[%clk 0:02:44.7]} 11. cxd5 {[%clk
0:02:21]} 11... cxd5 {[%clk 0:02:45.6]} 12. Rd1 {[%clk 0:02:13.4]} 12... c6
{[%clk 0:02:43.4]} 13. Na4 {[%clk 0:01:59]} 13... Ne4 {[%clk 0:02:35.6]} 14. Qe1
{[%clk 0:01:56.2]} 14... Qe7 {[%clk 0:02:01.7]} 15. f3 {[%clk 0:01:52.1]} 15...
Nf6 {[%clk 0:01:54.6]} 16. Bd2 {[%clk 0:01:49.7]} 16... Rfb8 {[%clk 0:01:52.7]}
17. b3 {[%clk 0:01:42.9]} 17... Nd7 {[%clk 0:01:48.5]} 18. Rac1 {[%clk
0:01:41.7]} 18... c5 {[%clk 0:01:48.7]} 19. Bc3 {[%clk 0:01:34.2]} 19... Rc8
{[%clk 0:01:18.8]} 20. Bxg7 {[%clk 0:01:33.2]} 20... Kxg7 {[%clk 0:01:19.5]} 21.
Qc3+ {[%clk 0:01:33.3]} 21... Qf6 {[%clk 0:01:20.1]} 22. Qxf6+ {[%clk
0:01:31.9]} 22... Kxf6 {[%clk 0:01:21]} 23. Ba6 {[%clk 0:01:30.2]} 23... Rc7
{[%clk 0:01:18]} 24. Rd2 {[%clk 0:01:15]} 24... Ke5 {[%clk 0:01:05.2]} 25. Rdc2
{[%clk 0:01:09.5]} 25... Kd6 {[%clk 0:00:59.1]} 26. Kf2 {[%clk 0:01:01.1]} 26...
f5 {[%clk 0:00:58.2]} 27. h4 {[%clk 0:00:59.6]} 27... Rb8 {[%clk 0:00:53.1]} 28.
Nc3 {[%clk 0:00:49.9]} 28... Rc6 {[%clk 0:00:40.9]} 29. Bb5 {[%clk 0:00:46.9]}
29... Rc7 {[%clk 0:00:39.5]} 30. Bxd7 {[%clk 0:00:43.2]} 30... Kxd7 {[%clk
0:00:40.4]} 31. Ne2 {[%clk 0:00:25.2]} 31... c4 {[%clk 0:00:36]} 32. Nd4 {[%clk
0:00:24.5]} 32... Rbc8 {[%clk 0:00:34.4]} 33. Kg3 {[%clk 0:00:20.6]} 33... Bf7
{[%clk 0:00:33.2]} 34. Kf4 {[%clk 0:00:20.5]} 34... Rb7 {[%clk 0:00:29.1]} 35.
h5 {[%clk 0:00:17]} 35... Kd6 {[%clk 0:00:28.6]} 36. hxg6 {[%clk 0:00:16.4]}
36... hxg6 {[%clk 0:00:27.9]} 37. Rc3 {[%clk 0:00:15.6]} 37... Rh8 {[%clk
0:00:24.7]} 38. Kg5 {[%clk 0:00:12.5]} 38... Rh2 {[%clk 0:00:24.5]} 39. R1c2
{[%clk 0:00:12.5]} 39... Rh1 {[%clk 0:00:19.2]} 40. Kf6 {[%clk 0:00:12.3]} 40...
Rh7 {[%clk 0:00:16.1]} 41. g4 {[%clk 0:00:09.3]} 41... fxg4 {[%clk 0:00:15.5]}
42. fxg4 {[%clk 0:00:09.5]} 42... Bg8 {[%clk 0:00:14.9]} 43. Kg5 {[%clk
0:00:09.3]} 43... Bf7 {[%clk 0:00:14.1]} 44. Rf2 {[%clk 0:00:09.7]} 44... Re7
{[%clk 0:00:13]} 45. Rf6+ {[%clk 0:00:09.7]} 45... Ke5 {[%clk 0:00:13.3]} 46.
Ra6 {[%clk 0:00:06.4]} 46... Ke4 {[%clk 0:00:13.2]} 47. bxc4 {[%clk 0:00:05.5]}
47... dxc4 {[%clk 0:00:13.1]} 48. Ne2 {[%clk 0:00:03.5]} 48... Re5+ {[%clk
0:00:12.9]} 49. Kf6 {[%clk 0:00:01]} 49... Bd5 {[%clk 0:00:13.3]} 0-1

[Event "*** SCC Grand Prix: Titled Tuesday Blitz"]
[Site "Chess.com"]
[Date "2020.06.09"]
[Round "4"]
[White "thedjoker98"]
[Black "BocharovD"]
[Result "0-1"]
[WhiteElo "2540"]
[BlackElo "2741"]
[TimeControl "180+1"]
[EndTime "9:40:09 PDT"]
[Termination "BocharovD won by resignation"]

1. d4 {[%clk 0:03:00.9]} 1... Nf6 {[%clk 0:02:58.4]} 2. c4 {[%clk 0:03:00.9]}
2... e6 {[%clk 0:02:58.6]} 3. Nc3 {[%clk 0:03:01.1]} 3... Bb4 {[%clk 0:02:56.7]}
4. g3 {[%clk 0:03:01.5]} 4... O-O {[%clk 0:02:55.4]} 5. Bg2 {[%clk 0:03:01.7]}
5... d6 {[%clk 0:02:55.6]} 6. Nf3 {[%clk 0:03:00.9]} 6... Bxc3+ {[%clk
0:02:52.7]} 7. bxc3 {[%clk 0:03:00.7]} 7... Nc6 {[%clk 0:02:53.2]} 8. O-O {[%clk
0:02:59.7]} 8... e5 {[%clk 0:02:50.5]} 9. d5 {[%clk 0:02:49.7]} 9... Na5 {[%clk
0:02:45.4]} 10. Nd2 {[%clk 0:02:49.6]} 10... Bg4 {[%clk 0:02:39.7]} 11. f3
{[%clk 0:02:45.1]} 11... Bd7 {[%clk 0:02:36.6]} 12. e4 {[%clk 0:02:43.5]} 12...
c6 {[%clk 0:02:36.6]} 13. Ba3 {[%clk 0:02:40.8]} 13... cxd5 {[%clk 0:02:35.5]}
14. cxd5 {[%clk 0:02:40.7]} 14... Bb5 {[%clk 0:02:31.1]} 15. Re1 {[%clk
0:02:36.7]} 15... Rc8 {[%clk 0:02:30.8]} 16. Rb1 {[%clk 0:02:34.6]} 16... Bd3
{[%clk 0:02:28.2]} 17. Rc1 {[%clk 0:02:32.1]} 17... Ba6 {[%clk 0:02:19.4]} 18.
Kh1 {[%clk 0:02:30.5]} 18... Qe7 {[%clk 0:02:05.9]} 19. Qa4 {[%clk 0:02:22.8]}
19... b6 {[%clk 0:01:51]} 20. Bb4 {[%clk 0:02:08.8]} 20... Nd7 {[%clk
0:01:46.5]} 21. Nb3 {[%clk 0:01:59.2]} 21... Bc4 {[%clk 0:01:36.2]} 22. Nxa5
{[%clk 0:01:46.5]} 22... bxa5 {[%clk 0:01:33.8]} 23. Qxa5 {[%clk 0:01:47.4]}
23... Nc5 {[%clk 0:01:33.8]} 24. Bh3 {[%clk 0:01:36.6]} 24... Rc7 {[%clk
0:01:30.2]} 25. Bxc5 {[%clk 0:01:25.2]} 25... Rxc5 {[%clk 0:01:28.2]} 26. Qa3
{[%clk 0:01:25.3]} 26... Qc7 {[%clk 0:01:25.9]} 27. Qb2 {[%clk 0:01:01.4]} 27...
Ra5 {[%clk 0:01:21.4]} 28. a3 {[%clk 0:00:48.8]} 28... Rb8 {[%clk 0:01:20.2]}
29. Qa1 {[%clk 0:00:47.8]} 29... Rb3 {[%clk 0:01:19]} 30. Rc2 {[%clk 0:00:47.6]}
30... Raxa3 {[%clk 0:00:57.8]} 31. Qc1 {[%clk 0:00:47]} 31... h6 {[%clk
0:00:46.4]} 32. Qe3 {[%clk 0:00:36.6]} 32... Qb6 {[%clk 0:00:42.9]} 33. Qxb6
{[%clk 0:00:33]} 33... Rxb6 {[%clk 0:00:41.9]} 34. f4 {[%clk 0:00:32.7]} 34...
Kf8 {[%clk 0:00:39]} 35. fxe5 {[%clk 0:00:32.4]} 35... dxe5 {[%clk 0:00:39.1]}
36. Rec1 {[%clk 0:00:24.4]} 36... Bd3 {[%clk 0:00:36.3]} 37. Rd2 {[%clk
0:00:24.7]} 37... Bxe4+ {[%clk 0:00:36.2]} 38. Bg2 {[%clk 0:00:25.6]} 38...
Bxg2+ {[%clk 0:00:26.2]} 39. Kxg2 {[%clk 0:00:26.5]} 39... Ra5 {[%clk
0:00:26.8]} 40. c4 {[%clk 0:00:23.7]} 40... Rc5 {[%clk 0:00:26.7]} 41. Ra1
{[%clk 0:00:22.1]} 41... a5 {[%clk 0:00:25.9]} 42. d6 {[%clk 0:00:20.3]} 42...
Ke8 {[%clk 0:00:24.8]} 43. d7+ {[%clk 0:00:19]} 43... Kd8 {[%clk 0:00:24.5]} 44.
Rda2 {[%clk 0:00:10.9]} 44... Ra6 {[%clk 0:00:22.8]} 45. Rd1 {[%clk 0:00:08.3]}
45... Ra7 {[%clk 0:00:21.7]} 46. Rf2 {[%clk 0:00:05]} 46... f6 {[%clk
0:00:21.5]} 47. Rfd2 {[%clk 0:00:05.3]} 47... Rxc4 {[%clk 0:00:21.3]} 48. Rd5
{[%clk 0:00:05.4]} 48... a4 {[%clk 0:00:20.2]} 49. Rb5 {[%clk 0:00:05.6]} 49...
Rd4 {[%clk 0:00:19]} 50. Rb8+ {[%clk 0:00:03.7]} 50... Kxd7 {[%clk 0:00:18.8]}
0-1

[Event "*** SCC Grand Prix: Titled Tuesday Blitz"]
[Site "Chess.com"]
[Date "2020.06.09"]
[Round "4"]
[White "CHESSMASTER759"]
[Black "DrBergerBerger"]
[Result "1-0"]
[WhiteElo "2604"]
[BlackElo "2431"]
[TimeControl "180+1"]
[EndTime "9:40:10 PDT"]
[Termination "CHESSMASTER759 won by resignation"]

1. e4 {[%clk 0:03:00.9]} 1... e6 {[%clk 0:02:59.7]} 2. d4 {[%clk 0:03:00.7]}
2... d5 {[%clk 0:03:00.2]} 3. Nc3 {[%clk 0:02:59.3]} 3... Nf6 {[%clk 0:02:59.3]}
4. e5 {[%clk 0:02:57.8]} 4... Nfd7 {[%clk 0:02:59.2]} 5. f4 {[%clk 0:02:58.3]}
5... c5 {[%clk 0:02:59.5]} 6. Nf3 {[%clk 0:02:56.9]} 6... Nc6 {[%clk 0:02:59.6]}
7. Be3 {[%clk 0:02:57.2]} 7... Be7 {[%clk 0:02:59]} 8. Qd2 {[%clk 0:02:53.7]}
8... O-O {[%clk 0:02:59.4]} 9. dxc5 {[%clk 0:02:51.8]} 9... Qa5 {[%clk
0:02:59.3]} 10. O-O-O {[%clk 0:02:47.7]} 10... b6 {[%clk 0:02:59]} 11. Bb5
{[%clk 0:02:44.9]} 11... Nb4 {[%clk 0:02:58.1]} 12. Kb1 {[%clk 0:02:42]} 12...
bxc5 {[%clk 0:02:56]} 13. a3 {[%clk 0:02:41.5]} 13... Rb8 {[%clk 0:02:55.6]} 14.
axb4 {[%clk 0:02:33.8]} 14... cxb4 {[%clk 0:02:51.1]} 15. Nxd5 {[%clk 0:02:33]}
15... exd5 {[%clk 0:02:47.9]} 16. Bxd7 {[%clk 0:02:25.7]} 16... Bxd7 {[%clk
0:02:48.8]} 17. Qxd5 {[%clk 0:02:25.7]} 17... Qxd5 {[%clk 0:02:49.1]} 18. Rxd5
{[%clk 0:02:24.4]} 18... Bc6 {[%clk 0:02:49.5]} 19. Rd2 {[%clk 0:02:18.3]} 19...
a5 {[%clk 0:02:10.7]} 20. b3 {[%clk 0:02:13.6]} 20... Rfc8 {[%clk 0:02:08.1]}
21. Nd4 {[%clk 0:02:08.7]} 21... Be4 {[%clk 0:02:05.4]} 22. Kb2 {[%clk 0:02:05]}
22... f6 {[%clk 0:01:44.1]} 23. Ra1 {[%clk 0:01:57.2]} 23... Rc3 {[%clk
0:01:34.2]} 24. Bg1 {[%clk 0:01:55]} 24... fxe5 {[%clk 0:01:34.1]} 25. fxe5
{[%clk 0:01:53.9]} 25... Ra8 {[%clk 0:01:31.5]} 26. Nb5 {[%clk 0:01:38.3]} 26...
Rac8 {[%clk 0:01:18.7]} 27. Nd4 {[%clk 0:01:34.4]} 27... R8c5 {[%clk 0:01:15.9]}
28. Re1 {[%clk 0:01:27.6]} 28... Bg6 {[%clk 0:01:14.8]} 29. g4 {[%clk
0:01:18.2]} 29... Bg5 {[%clk 0:01:09.9]} 30. Rde2 {[%clk 0:01:15.8]} 30... Bh4
{[%clk 0:01:09.3]} 31. Bf2 {[%clk 0:01:12.8]} 31... Bd8 {[%clk 0:00:59.6]} 32.
Nf5 {[%clk 0:01:01.1]} 32... Rc6 {[%clk 0:00:40.4]} 33. Rd2 {[%clk 0:00:57.6]}
33... Bg5 {[%clk 0:00:39.1]} 34. Rde2 {[%clk 0:00:57.2]} 34... h5 {[%clk
0:00:38.3]} 35. h4 {[%clk 0:00:54.5]} 35... Bf4 {[%clk 0:00:34.7]} 36. Ne7+
{[%clk 0:00:51.7]} 36... Kh7 {[%clk 0:00:34.6]} 37. Nxc6 {[%clk 0:00:49.9]}
37... Rxc6 {[%clk 0:00:35.5]} 38. e6 {[%clk 0:00:46.3]} 38... hxg4 {[%clk
0:00:25.6]} 39. e7 {[%clk 0:00:45.7]} 39... Be8 {[%clk 0:00:25.7]} 40. Rd1
{[%clk 0:00:41.8]} 40... Kg8 {[%clk 0:00:20.6]} 41. Rg1 {[%clk 0:00:37]} 41...
Bh6 {[%clk 0:00:13.5]} 42. Rxg4 {[%clk 0:00:34.3]} 42... g6 {[%clk 0:00:14.1]}
43. Bd4 {[%clk 0:00:30.8]} 43... Kf7 {[%clk 0:00:12.4]} 44. Kb1 {[%clk
0:00:28.8]} 44... Rd6 {[%clk 0:00:11.2]} 45. Rge4 {[%clk 0:00:24.6]} 45... Rd5
{[%clk 0:00:09.2]} 46. Rf2+ {[%clk 0:00:24.4]} 46... Kg8 {[%clk 0:00:07.7]} 47.
Be3 {[%clk 0:00:20.4]} 47... Bg7 {[%clk 0:00:06.9]} 48. Rf1 {[%clk 0:00:17.7]}
48... Rf5 {[%clk 0:00:03.3]} 49. Rxf5 {[%clk 0:00:15.5]} 49... gxf5 {[%clk
0:00:04.2]} 50. Rf4 {[%clk 0:00:14.4]} 50... Bh6 {[%clk 0:00:04.2]} 51. Rxf5
{[%clk 0:00:13.9]} 1-0

[Event "*** SCC Grand Prix: Titled Tuesday Blitz"]
[Site "Chess.com"]
[Date "2020.06.09"]
[Round "4"]
[White "heartofatiger"]
[Black "BJthechessgod"]
[Result "1-0"]
[WhiteElo "2598"]
[BlackElo "2147"]
[TimeControl "180+1"]
[EndTime "9:40:12 PDT"]
[Termination "heartofatiger won on time"]

1. d4 {[%clk 0:03:00.9]} 1... Nf6 {[%clk 0:02:54.9]} 2. c4 {[%clk 0:03:01.2]}
2... e6 {[%clk 0:02:49.7]} 3. Nf3 {[%clk 0:03:01.2]} 3... b6 {[%clk 0:02:48.8]}
4. g3 {[%clk 0:03:01.1]} 4... Bb7 {[%clk 0:02:48.1]} 5. Bg2 {[%clk 0:03:01.1]}
5... Be7 {[%clk 0:02:47.9]} 6. O-O {[%clk 0:03:01.4]} 6... O-O {[%clk
0:02:48.5]} 7. Nc3 {[%clk 0:03:01.3]} 7... d5 {[%clk 0:02:49.1]} 8. cxd5 {[%clk
0:03:00.4]} 8... Nxd5 {[%clk 0:02:48.9]} 9. Qb3 {[%clk 0:02:39.9]} 9... Nd7
{[%clk 0:02:38.8]} 10. Rd1 {[%clk 0:02:38.6]} 10... N7f6 {[%clk 0:02:26.7]} 11.
Bg5 {[%clk 0:02:36.4]} 11... Nxc3 {[%clk 0:02:24]} 12. bxc3 {[%clk 0:02:35.1]}
12... Ne4 {[%clk 0:02:20.2]} 13. Be3 {[%clk 0:02:27.2]} 13... Rb8 {[%clk
0:01:40.2]} 14. c4 {[%clk 0:02:26.3]} 14... Bf6 {[%clk 0:01:37.5]} 15. Rac1
{[%clk 0:02:24.6]} 15... Qe7 {[%clk 0:01:28]} 16. h4 {[%clk 0:02:21.6]} 16... c5
{[%clk 0:01:22.3]} 17. d5 {[%clk 0:02:18.2]} 17... exd5 {[%clk 0:01:19.1]} 18.
cxd5 {[%clk 0:02:18]} 18... Rfe8 {[%clk 0:01:13.7]} 19. Bf4 {[%clk 0:02:06.1]}
19... Rbd8 {[%clk 0:01:05.2]} 20. e3 {[%clk 0:01:57.6]} 20... h6 {[%clk
0:00:59.3]} 21. h5 {[%clk 0:01:56.4]} 21... Qd7 {[%clk 0:00:35.4]} 22. Nd2
{[%clk 0:01:11.2]} 22... Bxd5 {[%clk 0:00:29.6]} 23. Nxe4 {[%clk 0:00:58]} 23...
Bxb3 {[%clk 0:00:17.2]} 24. Nxf6+ {[%clk 0:00:57.7]} 24... gxf6 {[%clk
0:00:16.9]} 25. Rxd7 {[%clk 0:00:57.6]} 25... Rxd7 {[%clk 0:00:17.4]} 26. axb3
{[%clk 0:00:57.3]} 26... Rd3 {[%clk 0:00:14]} 27. Rb1 {[%clk 0:00:18.5]} 27...
Kg7 {[%clk 0:00:14.1]} 28. Bf1 {[%clk 0:00:17.2]} 28... Rd2 {[%clk 0:00:13.9]}
29. Kg2 {[%clk 0:00:16.2]} 29... Red8 {[%clk 0:00:13.9]} 30. Bc4 {[%clk
0:00:15.8]} 30... Rc2 {[%clk 0:00:10.4]} 31. e4 {[%clk 0:00:15.6]} 31... Rd4
{[%clk 0:00:09.7]} 32. Kf3 {[%clk 0:00:14.6]} 32... a5 {[%clk 0:00:07]} 33. Be3
{[%clk 0:00:14.7]} 33... Rd6 {[%clk 0:00:05.8]} 34. g4 {[%clk 0:00:14.9]} 34...
a4 {[%clk 0:00:05.2]} 35. Bd5 {[%clk 0:00:11.7]} 35... a3 {[%clk 0:00:04.8]} 36.
Ra1 {[%clk 0:00:11.7]} 36... a2 {[%clk 0:00:05.1]} 37. b4 {[%clk 0:00:12]} 37...
c4 {[%clk 0:00:03.8]} 38. b5 {[%clk 0:00:10]} 38... Rxd5 {[%clk 0:00:01.5]} 39.
exd5 {[%clk 0:00:09.8]} 39... c3 {[%clk 0:00:02.4]} 40. Bd4 {[%clk 0:00:09.7]}
40... Rd2 {[%clk 0:00:01.6]} 41. Bxc3 {[%clk 0:00:09.5]} 41... Rd3+ {[%clk
0:00:01.7]} 42. Ke4 {[%clk 0:00:09.6]} 42... Rxc3 {[%clk 0:00:02.6]} 43. Rxa2
{[%clk 0:00:10.1]} 43... Rc4+ {[%clk 0:00:02.6]} 44. Ke3 {[%clk 0:00:08.7]}
44... Rc5 {[%clk 0:00:03]} 45. Rd2 {[%clk 0:00:07.1]} 45... Rxb5 {[%clk
0:00:03.1]} 46. d6 {[%clk 0:00:07.5]} 46... Rb3+ {[%clk 0:00:02.8]} 47. Rd3
{[%clk 0:00:07.5]} 47... Rb5 {[%clk 0:00:02.1]} 48. d7 {[%clk 0:00:07.5]} 48...
Re5+ {[%clk 0:00:02.6]} 49. Kf4 {[%clk 0:00:07.3]} 1-0

[Event "*** SCC Grand Prix: Titled Tuesday Blitz"]
[Site "Chess.com"]
[Date "2020.06.09"]
[Round "4"]
[White "gui_borba"]
[Black "Papa12341234"]
[Result "1-0"]
[WhiteElo "2361"]
[BlackElo "2595"]
[TimeControl "180+1"]
[EndTime "9:40:13 PDT"]
[Termination "gui_borba won by checkmate"]

1. d4 {[%clk 0:03:00.9]} 1... Nf6 {[%clk 0:02:59.8]} 2. Bf4 {[%clk 0:03:01.2]}
2... g6 {[%clk 0:03:00]} 3. Nc3 {[%clk 0:03:00.9]} 3... d5 {[%clk 0:02:58.9]} 4.
e3 {[%clk 0:03:01.3]} 4... Bg7 {[%clk 0:02:59.2]} 5. h4 {[%clk 0:03:01.5]} 5...
h6 {[%clk 0:02:57.7]} 6. Nb5 {[%clk 0:02:59]} 6... Na6 {[%clk 0:02:56.1]} 7. Nf3
{[%clk 0:02:53.4]} 7... c6 {[%clk 0:02:55.6]} 8. Nc3 {[%clk 0:02:52.9]} 8... Nc7
{[%clk 0:02:53.2]} 9. Ne5 {[%clk 0:02:52.4]} 9... Nd7 {[%clk 0:02:51.8]} 10.
Nxd7 {[%clk 0:02:48.1]} 10... Bxd7 {[%clk 0:02:52.7]} 11. h5 {[%clk 0:02:46.4]}
11... g5 {[%clk 0:02:52.4]} 12. Bg3 {[%clk 0:02:39.4]} 12... Ne6 {[%clk
0:02:45.2]} 13. Bd3 {[%clk 0:02:38.8]} 13... O-O {[%clk 0:02:40.4]} 14. Ne2
{[%clk 0:02:38.1]} 14... f5 {[%clk 0:02:40.1]} 15. f4 {[%clk 0:02:34.4]} 15...
g4 {[%clk 0:02:30.4]} 16. Qd2 {[%clk 0:02:32.6]} 16... c5 {[%clk 0:02:28.4]} 17.
c3 {[%clk 0:02:27.7]} 17... Rc8 {[%clk 0:02:23.3]} 18. Bh4 {[%clk 0:02:25.1]}
18... b5 {[%clk 0:02:19.5]} 19. Ng3 {[%clk 0:02:21.2]} 19... cxd4 {[%clk
0:02:00.7]} 20. cxd4 {[%clk 0:02:18.8]} 20... Nc7 {[%clk 0:01:56.9]} 21. O-O
{[%clk 0:02:17.5]} 21... Qe8 {[%clk 0:01:52.5]} 22. Rac1 {[%clk 0:02:12.1]}
22... e6 {[%clk 0:01:51.5]} 23. Rc2 {[%clk 0:02:08.6]} 23... Na8 {[%clk
0:01:44]} 24. Rfc1 {[%clk 0:02:07.7]} 24... Rxc2 {[%clk 0:01:41.8]} 25. Rxc2
{[%clk 0:02:06.4]} 25... Nb6 {[%clk 0:01:40.7]} 26. b3 {[%clk 0:02:02.3]} 26...
Qb8 {[%clk 0:01:37]} 27. Be7 {[%clk 0:01:58.2]} 27... Rc8 {[%clk 0:01:35.4]} 28.
Bc5 {[%clk 0:01:58.1]} 28... Bf8 {[%clk 0:01:33.5]} 29. Qb4 {[%clk 0:01:51.3]}
29... Bxc5 {[%clk 0:01:30.7]} 30. dxc5 {[%clk 0:01:46.8]} 30... Na8 {[%clk
0:01:30.7]} 31. Qd4 {[%clk 0:01:43.8]} 31... Kf7 {[%clk 0:01:18.3]} 32. b4
{[%clk 0:01:26.3]} 32... Qc7 {[%clk 0:01:06.4]} 33. c6 {[%clk 0:01:12.4]} 33...
Bxc6 {[%clk 0:01:02.6]} 34. Bxb5 {[%clk 0:01:09.2]} 34... Qb7 {[%clk 0:00:55.5]}
35. Bxc6 {[%clk 0:01:00.7]} 35... Rxc6 {[%clk 0:00:56.4]} 36. Rxc6 {[%clk
0:01:00.4]} 36... Qxc6 {[%clk 0:00:57.3]} 37. Qh8 {[%clk 0:00:58]} 37... Nb6
{[%clk 0:00:40.2]} 38. Qh7+ {[%clk 0:00:55.7]} 38... Ke8 {[%clk 0:00:39]} 39.
Qxh6 {[%clk 0:00:54.8]} 39... Nc4 {[%clk 0:00:30.8]} 40. Qg6+ {[%clk 0:00:50.6]}
40... Kd7 {[%clk 0:00:27]} 41. Qg7+ {[%clk 0:00:39.3]} 41... Kd6 {[%clk
0:00:23.5]} 42. Qd4 {[%clk 0:00:36.7]} 42... a6 {[%clk 0:00:18.6]} 43. h6 {[%clk
0:00:36.7]} 43... Qe8 {[%clk 0:00:18.7]} 44. h7 {[%clk 0:00:31.9]} 44... e5
{[%clk 0:00:17.3]} 45. Qc5+ {[%clk 0:00:29.9]} 45... Ke6 {[%clk 0:00:17.1]} 46.
fxe5 {[%clk 0:00:21.9]} 46... Qh8 {[%clk 0:00:17.1]} 47. Qc6+ {[%clk 0:00:20.2]}
47... Kxe5 {[%clk 0:00:17.2]} 48. Qg6 {[%clk 0:00:19.4]} 48... Nxe3 {[%clk
0:00:15.7]} 49. Qg8 {[%clk 0:00:19.5]} 49... Qf6 {[%clk 0:00:09.6]} 50. h8=Q
{[%clk 0:00:19.6]} 50... f4 {[%clk 0:00:10.2]} 51. Qe8+ {[%clk 0:00:18.6]} 51...
Kd4 {[%clk 0:00:07.7]} 52. Qxf6+ {[%clk 0:00:18.1]} 52... Kd3 {[%clk 0:00:08.3]}
53. Qxf4 {[%clk 0:00:17.8]} 53... d4 {[%clk 0:00:08.6]} 54. Nf5 {[%clk
0:00:16.5]} 54... Nd5 {[%clk 0:00:07.8]} 55. Qxd4+ {[%clk 0:00:16.1]} 55... Kc2
{[%clk 0:00:08.2]} 56. Qe2+ {[%clk 0:00:15.5]} 56... Kb1 {[%clk 0:00:08.2]} 57.
Qeb2# {[%clk 0:00:15.2]} 1-0

[Event "*** SCC Grand Prix: Titled Tuesday Blitz"]
[Site "Chess.com"]
[Date "2020.06.09"]
[Round "4"]
[White "pma83"]
[Black "rynos0411"]
[Result "0-1"]
[WhiteElo "2132"]
[BlackElo "2413"]
[TimeControl "180+1"]
[EndTime "9:40:15 PDT"]
[Termination "rynos0411 won by resignation"]

1. d4 {[%clk 0:03:00.9]} 1... Nf6 {[%clk 0:02:59.6]} 2. c4 {[%clk 0:03:00.8]}
2... e6 {[%clk 0:02:59.1]} 3. Nc3 {[%clk 0:03:01.1]} 3... d5 {[%clk 0:02:58.6]}
4. cxd5 {[%clk 0:03:00.3]} 4... Nxd5 {[%clk 0:02:57.3]} 5. e4 {[%clk 0:02:59.1]}
5... Nxc3 {[%clk 0:02:57.4]} 6. bxc3 {[%clk 0:02:59.8]} 6... c5 {[%clk 0:02:58]}
7. Nf3 {[%clk 0:02:56.6]} 7... cxd4 {[%clk 0:02:57.8]} 8. cxd4 {[%clk
0:02:57.5]} 8... Bb4+ {[%clk 0:02:57.8]} 9. Bd2 {[%clk 0:02:57]} 9... Bxd2+
{[%clk 0:02:58]} 10. Qxd2 {[%clk 0:02:56.7]} 10... O-O {[%clk 0:02:58.6]} 11.
Bc4 {[%clk 0:02:56]} 11... Nd7 {[%clk 0:02:58.6]} 12. O-O {[%clk 0:02:54.5]}
12... b6 {[%clk 0:02:56.6]} 13. Rad1 {[%clk 0:02:48.7]} 13... Bb7 {[%clk
0:02:56.2]} 14. d5 {[%clk 0:02:48.8]} 14... exd5 {[%clk 0:02:46.6]} 15. Bxd5
{[%clk 0:02:47.5]} 15... Bxd5 {[%clk 0:02:31.5]} 16. Qxd5 {[%clk 0:02:48.4]}
16... Nc5 {[%clk 0:02:31.4]} 17. Qc4 {[%clk 0:02:31.2]} 17... Qe7 {[%clk
0:02:28.5]} 18. Rfe1 {[%clk 0:02:28.8]} 18... Rfd8 {[%clk 0:02:26]} 19. Nd4
{[%clk 0:02:26.2]} 19... Rac8 {[%clk 0:02:21.3]} 20. e5 {[%clk 0:02:17.9]} 20...
h6 {[%clk 0:02:05]} 21. e6 {[%clk 0:02:12.1]} 21... Nxe6 {[%clk 0:02:01.8]} 22.
Nc6 {[%clk 0:02:10.2]} 22... Qc7 {[%clk 0:01:37.1]} 23. Rc1 {[%clk 0:01:38.8]}
23... Re8 {[%clk 0:01:36.1]} 24. Qa6 {[%clk 0:01:32.5]} 24... Nc5 {[%clk
0:01:08]} 25. Rxe8+ {[%clk 0:00:51.8]} 25... Rxe8 {[%clk 0:01:08.9]} 26. Qb5
{[%clk 0:00:51.1]} 26... Re6 {[%clk 0:00:36.4]} 27. Nd4 {[%clk 0:00:46.4]} 27...
Qf4 {[%clk 0:00:33.4]} 28. Qb2 {[%clk 0:00:33]} 28... Rf6 {[%clk 0:00:11.4]} 29.
g3 {[%clk 0:00:28.9]} 29... Qe4 {[%clk 0:00:08.4]} 30. Rd1 {[%clk 0:00:10.7]}
30... Kh7 {[%clk 0:00:07.1]} 31. Qc2 {[%clk 0:00:09.1]} 31... Qxc2 {[%clk
0:00:05]} 32. Nxc2 {[%clk 0:00:10]} 32... Rf3 {[%clk 0:00:04.3]} 33. Ne3 {[%clk
0:00:09.6]} 33... Rf6 {[%clk 0:00:03.6]} 34. Rd8 {[%clk 0:00:09.8]} 34... Rc6
{[%clk 0:00:02.4]} 35. Nd5 {[%clk 0:00:07.9]} 35... Ne4 {[%clk 0:00:02.2]} 36.
Rd7 {[%clk 0:00:06.4]} 36... Rc1+ {[%clk 0:00:02.6]} 37. Kg2 {[%clk 0:00:06.2]}
37... Nc5 {[%clk 0:00:02.5]} 38. Rxf7 {[%clk 0:00:06]} 38... Rc2 {[%clk
0:00:03.4]} 39. Rxa7 {[%clk 0:00:05.8]} 39... Ne4 {[%clk 0:00:03.3]} 40. Re7
{[%clk 0:00:03.9]} 40... Rxf2+ {[%clk 0:00:03.8]} 41. Kg1 {[%clk 0:00:03]} 41...
Re2 {[%clk 0:00:04.3]} 42. Nc3 {[%clk 0:00:02.3]} 42... Nxc3 {[%clk 0:00:03.9]}
43. Rc7 {[%clk 0:00:03]} 43... Re1+ {[%clk 0:00:03.8]} 44. Kf2 {[%clk
0:00:02.9]} 44... Rc1 {[%clk 0:00:04.7]} 45. Ke3 {[%clk 0:00:02.5]} 45... Nd1+
{[%clk 0:00:05.1]} 46. Kd2 {[%clk 0:00:03.2]} 46... Rxc7 {[%clk 0:00:06]} 47.
Kxd1 {[%clk 0:00:03.8]} 47... Ra7 {[%clk 0:00:06.9]} 48. a4 {[%clk 0:00:04.2]}
48... Kg6 {[%clk 0:00:07.8]} 49. Kc2 {[%clk 0:00:04.9]} 49... Kf5 {[%clk
0:00:08.7]} 50. Kb3 {[%clk 0:00:05.6]} 50... Ke5 {[%clk 0:00:09.6]} 51. Kb4
{[%clk 0:00:06.2]} 51... Ra5 {[%clk 0:00:10.1]} 0-1